bitfinex-derivatives/quotes_ETHF0:USTF0_20260209
["timestamp","ask_amount","ask_price","bid_price","bid_amount"]
[1770612312666,13.55778575,2091.8,2091.0,10.84536477]
[1770612312866,11.7236853,2091.8,2091.0,10.84536477]
[1770612316174,11.7236853,2091.8,2091.0,11.0811612]
[1770612322169,11.9629053,2091.8,2090.6,2.85318246]
[1770612322364,11.9629053,2091.8,2090.7,11.1017659]
[1770612322568,10.99805268,2091.6,2090.7,11.1017659]
[1770612322971,10.99805268,2091.6,2090.5,11.1017659]
[1770612323671,11.23731268,2091.4,2090.5,11.1017659]
[1770612336888,10.99805268,2091.2,2090.5,11.1017659]
[1770612339985,10.99805268,2091.4,2090.5,11.1017659]
[1770612340181,42.66967719,2091.7,2090.5,11.1017659]
[1770612340182,53.66772987,2091.7,2090.5,11.1017659]
[1770612340380,10.99805268,2091.7,2090.7,11.1017659]
[1770612344493,10.99805268,2091.4,2090.5,13.95494836]
[1770612344698,10.99805268,2091.4,2090.5,11.1017659]
[1770612351498,10.8599278,2091.3,2090.5,11.1017659]
[1770612352503,10.8599278,2091.2,2090.5,11.1017659]
[1770612356098,10.8599278,2091.6,2090.7,10.90517443]
[1770612359800,10.8599278,2091.6,2090.8,10.90517443]
[1770612360299,42.67527266,2091.8,2090.8,10.90517443]
[1770612360501,10.86552327,2091.8,2091.0,10.90517443]
[1770612371706,0.00559547,2091.8,2091.0,10.90517443]
[1770612371909,10.8599278,2092.0,2091.2,10.90517443]
[1770612372707,10.8599278,2092.0,2091.3,10.90517443]
[1770612372916,0.0039732,2092.0,2091.3,10.90517443]
[1770612373307,10.8599278,2092.4,2091.4,10.90517443]
[1770612373509,10.8599278,2092.4,2091.5,10.90517443]
[1770612374309,10.86347995,2092.4,2091.5,10.90517443]
[1770612377419,0.00355215,2092.4,2091.5,10.90517443]
[1770612378019,0.00355215,2092.4,2091.6,11.27774547]
[1770612378619,11.06076214,2092.4,2091.6,11.27774547]
[1770612380822,0.00355215,2092.4,2091.6,11.27774547]
[1770612381618,11.06076214,2092.4,2091.6,11.27774547]
[1770612385420,0.00355215,2092.4,2091.6,11.27774547]
[1770612386125,11.06076214,2092.4,2091.6,11.27774547]
[1770612386928,0.00355215,2092.4,2091.6,11.27774547]
[1770612388027,11.06076214,2092.4,2091.6,11.27774547]
[1770612389523,11.29990214,2092.4,2091.3,14.13092793]
[1770612389826,11.29990214,2092.4,2091.3,11.27774547]
[1770612392929,11.29990214,2092.4,2091.4,11.27774547]
[1770612393130,11.06076214,2092.4,2091.4,14.13092793]
[1770612393325,11.06076214,2092.4,2091.5,11.27774547]
[1770612393932,0.00355215,2092.4,2091.5,14.13092793]
[1770612394230,0.00355215,2092.4,2091.6,11.27774547]
[1770612394425,11.06076214,2092.4,2091.6,11.27774547]
[1770612399428,11.06076214,2092.4,2091.4,11.27774547]
[1770612400230,11.06076214,2092.4,2091.2,11.27774547]
[1770612400435,11.29637999,2092.2,2091.2,11.27774547]
[1770612401232,11.05720999,2091.9,2091.0,11.27774547]
[1770612404034,11.05720999,2091.9,2090.8,11.27774547]
[1770612405636,11.05720999,2091.9,2091.0,11.11580864]
[1770612406339,11.7362869,2092.2,2091.1,11.11580864]
[1770612407336,11.7362869,2092.2,2091.3,11.11580864]
[1770612408037,11.7362869,2092.3,2091.3,11.11580864]
[1770612408238,11.7362869,2092.3,2091.3,13.9689911]
[1770612408440,11.7362869,2092.3,2091.4,11.11580864]
[1770612409042,11.7362869,2092.3,2091.5,11.11580864]
[1770612409545,11.7362869,2092.3,2091.6,11.11580864]
[1770612412939,11.7362869,2092.3,2091.4,11.11580864]
[1770612414447,11.9754369,2092.3,2091.4,11.11580864]
[1770612416540,11.7362869,2092.3,2091.4,11.11580864]
[1770612416950,11.7362869,2092.3,2091.5,11.11580864]
[1770612417244,11.7362869,2092.3,2091.6,11.11580864]
[1770612420245,11.7362869,2092.8,2091.8,11.11580864]
[1770612420547,11.7362869,2092.8,2091.9,11.11580864]
[1770612420754,11.9753869,2092.8,2091.9,11.11580864]
[1770612421441,11.98034678,2092.8,2091.9,11.12001777]
[1770612426350,11.7362869,2092.6,2091.9,0.00420913]
[1770612427750,11.7362869,2092.6,2091.9,11.12001777]
[1770612431355,11.7362869,2092.6,2091.9,0.00420913]
[1770612432155,11.9754069,2092.6,2091.9,0.00420913]
[1770612435961,11.9754069,2092.6,2091.9,11.8371834]
[1770612436162,11.9754069,2092.6,2091.9,0.00420913]
[1770612436365,54.64508409,2092.6,2091.9,0.00420913]
[1770612436661,11.65662411,2092.5,2091.9,0.00420913]
[1770612437864,54.3263013,2092.5,2091.9,0.00420913]
[1770612438063,11.63982903,2092.4,2091.9,0.00420913]
[1770612443063,11.63982903,2092.4,2091.9,11.49546346]
[1770612447270,11.63982903,2092.6,2091.9,11.49546346]
[1770612448866,11.63982903,2092.6,2091.9,0.00420913]
[1770612450463,11.87894903,2092.6,2091.9,0.00420913]
[1770612450864,11.63982903,2092.4,2091.6,11.49125433]
[1770612451864,11.63982903,2092.4,2091.6,11.49487714]
[1770612460776,11.63982903,2092.3,2091.6,11.49487714]
[1770612475190,11.63982903,2092.3,2091.6,14.3480596]
[1770612475395,10.84458118,2092.4,2091.8,11.63538515]
[1770612480292,10.84458118,2092.6,2091.8,14.48856761]
[1770612480596,10.84458118,2092.6,2092.0,11.63538515]
[1770612481494,10.84458118,2092.6,2091.8,2.85318246]
[1770612481695,10.84458118,2092.4,2091.6,2.85680527]
[1770612481896,53.75339837,2092.4,2091.6,0.00362281]
[1770612482200,12.67434911,2091.9,2091.0,14.48856761]
[1770612482699,10.84458118,2091.8,2091.0,11.63538515]
[1770612482896,11.08379118,2091.8,2090.8,14.48856761]
[1770612483095,10.84458118,2091.5,2090.8,0.00589307]
[1770612487596,10.84458118,2091.5,2090.2,11.63538515]
[1770612488306,11.08382118,2091.5,2090.2,11.63538515]
[1770612488507,10.84458118,2091.3,2090.2,11.64091061]
[1770612488709,10.84458118,2091.1,2090.2,11.64091061]
[1770612489001,10.84458118,2091.1,2090.2,0.00552546]
[1770612489210,11.08395118,2090.5,2089.3,14.48856761]
[1770612489406,10.84458118,2090.3,2089.3,11.63538515]
[1770612489703,12.18551118,2089.8,2088.6,11.63538515]
[1770612489910,10.84458118,2089.6,2088.6,11.63538515]
[1770612490170,10.85015571,2089.6,2088.6,11.63928975]
[1770612494813,0.00557453,2089.6,2088.6,11.63928975]
[1770612495013,0.23939,2090.3,2088.6,11.63928975]
[1770612495014,10.84458118,2090.1,2088.6,11.63928975]
[1770612495913,10.84998581,2090.1,2088.6,11.63928975]
[1770612496109,11.80830438,2090.9,2089.1,11.78913905]
[1770612496309,11.56898438,2090.9,2089.2,11.78913905]
[1770612496510,11.56898438,2090.9,2089.3,11.78913905]
[1770612496905,11.56898438,2090.9,2089.5,11.78913905]
[1770612497114,11.5744017,2090.9,2089.5,11.78913905]
[1770612497615,11.45359027,2091.3,2090.1,11.11794037]
[1770612498506,11.45359027,2091.5,2090.1,11.11794037]
[1770612498711,0.00351682,2091.3,2090.1,11.12183804]
[1770612498914,0.00351682,2091.3,2090.4,11.11794037]
[1770612499915,11.45710709,2091.3,2090.4,11.11794037]
[1770612500922,0.00351682,2091.3,2090.4,11.11794037]
[1770612501622,11.45710709,2091.3,2090.4,11.11794037]
[1770612503224,11.45710709,2091.3,2090.2,11.11794037]
[1770612509328,0.00351682,2091.3,2090.2,11.11794037]
[1770612509524,11.45710709,2091.3,2090.2,11.11794037]
[1770612522143,11.45710709,2091.3,2090.2,13.97190453]
[1770612522337,11.45710709,2091.3,2090.3,11.11794037]
[1770612523238,11.45710709,2091.3,2090.4,11.11794037]
[1770612524236,11.45710709,2091.3,2090.5,11.11794037]
[1770612525244,11.45710709,2091.3,2090.6,11.53929209]
[1770612526146,11.45710709,2091.3,2090.6,14.39325625]
[1770612526341,11.45710709,2091.3,2090.6,11.53929209]
[1770612527240,11.45710709,2091.3,2090.8,11.53929209]
[1770612533744,0.00351682,2091.3,2090.8,13.37065373]
[1770612533949,11.34361324,2091.3,2090.8,13.37065373]
[1770612534150,0.00351682,2091.3,2090.8,11.53929209]
[1770612534346,0.00351682,2091.3,2090.8,13.37065373]
[1770612534552,11.34009642,2091.6,2090.9,11.53929209]
[1770612534953,11.34009642,2091.6,2090.9,14.39325625]
[1770612535144,11.34009642,2091.6,2090.9,11.53929209]
[1770612535540,11.34425656,2091.6,2091.1,11.53929209]
[1770612536543,11.34425656,2091.6,2090.9,14.39325625]
[1770612539157,11.34425656,2091.6,2090.9,11.53929209]
[1770612540751,13.1756182,2091.6,2090.8,14.39325625]
[1770612542855,11.34009642,2091.1,2090.5,11.53929209]
[1770612544055,11.34009642,2091.1,2090.4,14.39325625]
[1770612546859,11.34009642,2091.1,2090.4,11.53929209]
[1770612548257,11.34009642,2091.1,2090.4,14.39325625]
[1770612548456,11.34009642,2091.1,2090.4,11.53929209]
[1770612550757,11.34009642,2091.1,2090.3,11.53929209]
[1770612554358,11.34009642,2091.1,2090.1,11.54318976]
[1770612554964,14.16403595,2091.1,2090.1,11.54318976]
[1770612556866,11.34009642,2091.1,2090.1,11.54318976]
[1770612557063,2.82393953,2091.2,2090.1,11.54318976]
[1770612557263,10.83627289,2091.5,2090.7,11.33958095]
[1770612558064,0.00416014,2091.6,2090.7,11.33958095]
[1770612558272,10.84043303,2091.6,2090.9,11.33958095]
[1770612558470,0.00416014,2091.6,2090.9,11.33958095]
[1770612558672,10.84043303,2091.6,2090.9,11.33958095]
[1770612559267,0.00416014,2091.6,2090.9,11.33958095]
[1770612559472,1e-08,2091.6,2091.0,14.19354511]
[1770612559770,1e-08,2091.6,2091.1,11.33958095]
[1770612561361,10.83627289,2092.2,2091.1,11.33958095]
[1770612562473,10.84068573,2092.2,2091.1,11.6147757]
[1770612562664,10.84068573,2092.2,2091.2,11.33958095]
[1770612565781,0.00441284,2092.2,2091.2,11.33958095]
[1770612565988,42.65687362,2092.7,2091.5,11.33958095]
[1770612565989,10.83627289,2092.4,2091.5,11.33958095]
[1770612566880,10.84138399,2092.4,2091.5,11.33958095]
[1770612572291,10.84138399,2092.4,2091.3,11.33958095]
[1770612572488,10.83627289,2092.2,2091.2,11.33958095]
[1770612586194,11.73356545,2092.1,2091.2,11.33958095]
[1770612587596,11.73356545,2092.1,2091.3,11.82431163]
[1770612588402,14.55750498,2092.0,2091.3,11.82431163]
[1770612590906,14.55750498,2092.0,2091.1,11.82431163]
[1770612591595,11.73356545,2091.8,2091.1,11.82431163]
[1770612597707,14.55750498,2091.8,2090.8,11.82431163]
[1770612599106,2.84731799,2092.0,2091.0,14.57035447]
[1770612599301,11.73356545,2092.2,2091.5,11.82431163]
[1770612602003,11.73356545,2092.2,2091.4,14.67827579]
[1770612602309,11.73356545,2092.2,2091.2,14.67827579]
[1770612602699,11.73356545,2092.2,2091.2,2.85396416]
[1770612602902,11.97273545,2092.2,2091.2,14.67827579]
[1770612603704,11.73356545,2092.2,2091.4,11.82431163]
[1770612605104,11.73356545,2092.2,2091.3,11.82431163]
[1770612605504,11.97273545,2092.2,2091.1,14.67827579]
[1770612605707,11.73356545,2092.1,2091.1,14.67827579]
[1770612608405,11.73356545,2091.8,2091.1,2.85396416]
[1770612608608,11.97277545,2091.8,2090.9,11.82431163]
[1770612608910,11.73356545,2091.7,2090.9,11.82431163]
[1770612609112,11.73356545,2091.7,2090.7,2.85396416]
[1770612609113,11.73356545,2091.6,2090.7,11.82431163]
[1770612609310,11.73356545,2091.5,2090.7,11.82431163]
[1770612609605,11.73356545,2091.4,2090.4,14.67827579]
[1770612609807,11.97284545,2091.2,2090.2,14.67827579]
[1770612610111,11.73356545,2091.1,2090.1,11.8282093]
[1770612610910,11.73356545,2091.1,2090.2,11.82431163]
[1770612613810,42.41776362,2091.5,2090.2,11.82431163]
[1770612614012,11.73356545,2091.4,2090.2,11.82431163]
[1770612615115,11.14570904,2091.5,2090.3,14.71164982]
[1770612616610,11.14570904,2091.5,2090.3,11.85768566]
[1770612621119,11.38495904,2091.5,2090.3,11.85768566]
[1770612627320,11.86289408,2091.3,2090.3,11.85768566]
[1770612628019,11.86289408,2091.3,2090.1,11.46843415]
[1770612628419,12.10216408,2091.3,2090.1,11.46843415]
[1770612628821,0.23929,2091.2,2090.1,11.46843415]
[1770612629021,11.86289408,2091.1,2090.1,11.46843415]
[1770612630332,12.10218408,2091.1,2090.1,11.46843415]
[1770612634224,11.86289408,2091.0,2090.1,11.46843415]
[1770612636330,11.86289408,2091.3,2090.1,14.32239831]
[1770612636533,11.86289408,2091.3,2090.3,11.46453648]
[1770612638228,11.86289408,2091.3,2090.3,14.31850064]
[1770612639830,11.86289408,2091.3,2090.3,11.46453648]
[1770612643335,11.86289408,2091.3,2090.5,11.46453648]
[1770612646542,11.55107037,2091.5,2090.5,14.32817966]
[1770612649240,11.55107037,2091.5,2090.5,11.46453648]
[1770612650445,11.55107037,2091.3,2090.5,11.46453648]
[1770612651150,11.55107037,2091.3,2090.5,14.32817966]
[1770612656246,11.55107037,2091.3,2090.5,11.46453648]
[1770612656456,11.55107037,2091.3,2090.5,14.32817966]
[1770612658558,11.55107037,2091.3,2090.5,11.46453648]
[1770612659061,11.55107037,2091.3,2090.5,14.32817966]
[1770612664067,14.39775316,2091.5,2090.5,14.32817966]
[1770612664361,11.55107037,2091.5,2090.8,10.91259469]
[1770612664868,13.38265616,2091.5,2090.8,10.91259469]
[1770612665765,11.55107037,2091.3,2090.7,10.91259469]
[1770612665957,14.39775316,2091.3,2090.7,10.91259469]
[1770612668562,14.39775316,2091.3,2090.5,13.77623787]
[1770612668763,14.39775316,2091.3,2090.6,10.91259469]
[1770612669460,1.83158579,2090.9,2090.4,2.86364318]
[1770612669662,11.55107037,2090.8,2090.4,10.91259469]
[1770612669863,11.55107037,2090.8,2090.3,13.77623787]
[1770612670766,11.55107037,2090.8,2090.4,10.91259469]
[1770612672465,11.5570946,2090.9,2090.4,10.91259469]
[1770612672770,11.55107037,2091.3,2090.7,10.91259469]
[1770612673464,14.39775316,2091.3,2090.6,10.91259469]
[1770612673663,14.40153205,2091.3,2090.6,10.91259469]
[1770612674269,14.40153205,2091.3,2090.4,13.77623787]
[1770612674473,11.55107037,2090.9,2090.4,2.86364318]
[1770612674665,11.55107037,2090.9,2090.3,13.77623787]
[1770612675062,11.55107037,2090.9,2090.3,10.91259469]
[1770612677674,11.55107037,2090.9,2090.1,14.28504935]
[1770612677874,11.55107037,2090.9,2090.2,11.4175085]
[1770612684679,11.31837499,2090.7,2090.1,0.00389767]
[1770612685778,11.31837499,2090.7,2090.1,11.42140617]
[1770612686880,11.31837499,2090.9,2090.1,11.42140617]
[1770612687075,2.84668279,2091.0,2090.1,11.42140617]
[1770612687277,11.31837499,2091.0,2090.1,11.42140617]
[1770612687476,11.31837499,2091.0,2090.2,11.4175085]
[1770612688279,11.31837499,2090.9,2090.2,11.4175085]
[1770612694784,11.31837499,2090.8,2090.1,11.42140617]
[1770612696085,11.31837499,2090.6,2090.1,11.42140617]
[1770612697380,2.84668279,2090.9,2090.1,11.42140617]
[1770612697584,11.31837499,2091.0,2090.3,11.4175085]
[1770612699185,0.00377889,2091.3,2090.4,14.28115168]
[1770612699387,11.32215388,2091.3,2090.5,11.4175085]
[1770612711594,0.00377889,2091.3,2090.5,11.4175085]
[1770612712695,11.87968419,2091.3,2090.6,11.16081236]
[1770612715297,11.8759053,2091.6,2090.8,11.16081236]
[1770612715497,11.8759053,2091.6,2090.9,11.16081236]
[1770612715892,11.8759053,2091.6,2091.0,11.16081236]
[1770612716196,11.8759053,2091.8,2091.0,11.16081236]
[1770612716398,11.88001793,2091.8,2091.0,11.16081236]
[1770612722409,11.88001793,2091.8,2090.8,11.16081236]
[1770612722601,11.8759053,2091.7,2090.8,11.16081236]
[1770612725804,0.00411263,2091.8,2090.8,11.16081236]
[1770612726106,11.8759053,2091.7,2090.8,11.16081236]
[1770612728209,12.9765553,2091.3,2090.4,4.29331984]
[1770612728402,4.94745558,2091.6,2089.9,11.15262024]
[1770612728403,11.8759053,2090.9,2089.9,11.15262024]
[1770612728606,14.72636965,2090.8,2089.9,11.15262024]
[1770612729413,14.72636965,2090.8,2089.9,11.15831253]
[1770612730409,11.8759053,2090.9,2090.0,11.16081236]
[1770612730918,11.8759053,2090.9,2090.1,11.16081236]
[1770612732519,11.8759053,2090.9,2090.2,11.16081236]
[1770612733013,11.8759053,2090.9,2090.0,11.16081236]
[1770612733414,14.72636965,2090.9,2090.0,11.16081236]
[1770612736321,14.72636965,2090.9,2089.9,11.09163929]
[1770612738024,11.79434646,2090.8,2089.9,0.00569229]
[1770612738321,14.64481081,2090.8,2089.9,11.65316259]
[1770612738522,11.79434646,2090.6,2089.9,11.65316259]
[1770612738924,11.79434646,2090.6,2089.9,15.94648243]
[1770612740226,11.79434646,2090.6,2089.9,0.00569229]
[1770612740827,14.64481081,2090.6,2089.9,0.00569229]
[1770612741325,11.79434646,2090.6,2089.9,0.00569229]
[1770612744222,11.79434646,2090.4,2090.0,11.6474703]
[1770612744423,11.79434646,2090.3,2090.0,11.6474703]
[1770612744728,11.79903822,2090.3,2090.2,4.29331984]
[1770612745123,11.79903822,2090.3,2090.0,11.6474703]
[1770612745725,0.00469176,2090.3,2090.0,11.6474703]
[1770612746426,11.79903822,2090.3,2090.0,11.6474703]
[1770612746626,11.79903822,2090.3,2089.9,11.65316259]
[1770612751030,11.79903822,2090.3,2089.9,0.00569229]
[1770612751230,11.79903822,2090.3,2089.7,11.6474703]
[1770612752133,11.79903822,2090.3,2089.7,11.65095932]
[1770612752828,11.89046587,2091.8,2090.3,0.03640541]
[1770612753023,26.87226316,2091.7,2090.7,0.03640541]
[1770612753227,11.87226316,2091.7,2090.7,0.03640541]
[1770612753430,26.87226316,2091.7,2090.7,0.03640541]
[1770612753628,11.87226316,2091.6,2090.7,0.03640541]
[1770612753832,11.87598338,2091.6,2090.9,0.03640541]
[1770612756526,26.87598338,2091.6,2090.9,0.03640541]
[1770612756837,11.89046587,2091.5,2090.9,0.03640541]
[1770612757339,11.89046587,2091.4,2090.9,0.03640541]
[1770612759836,11.89046587,2091.5,2090.9,0.03640541]
[1770612760037,26.89046587,2091.5,2090.9,0.03640541]
[1770612760241,11.89046587,2091.4,2090.9,0.03640541]
[1770612760752,26.89046587,2091.4,2090.9,0.03640541]
[1770612761050,11.89046587,2091.3,2090.9,0.03640541]
[1770612761750,11.89046587,2091.5,2090.9,0.03640541]
[1770612761952,11.89046587,2091.4,2090.9,0.03640541]
[1770612765552,11.8880994,2091.1,2090.3,4.27364257]
[1770612765756,11.8880994,2091.1,2090.4,4.54383299]
[1770612765956,26.8880994,2091.1,2090.4,4.54383299]
[1770612766255,11.8880994,2091.0,2090.4,4.54383299]
[1770612767055,11.8880994,2091.5,2090.4,4.54383299]
[1770612767257,11.8880994,2091.4,2090.4,4.54383299]
[1770612767555,11.8880994,2091.3,2090.4,4.54383299]
[1770612767955,15.0,2091.2,2090.4,4.54383299]
[1770612768449,26.8880994,2091.2,2090.4,4.54383299]
[1770612769256,11.8880994,2091.1,2090.4,4.54383299]
[1770612772347,11.8880994,2091.1,2090.5,4.54383299]
[1770612772553,11.8880994,2091.0,2090.3,4.51302257]
[1770612772752,11.8880994,2091.0,2090.4,4.53842611]
[1770612772947,11.8880994,2091.0,2090.5,4.53842611]
[1770612773148,11.8880994,2091.0,2090.3,4.51302257]
[1770612773360,11.8880994,2091.0,2090.4,4.5384275]
[1770612773654,11.8880994,2091.0,2090.5,4.5384275]
[1770612773860,11.8880994,2091.0,2090.3,4.51302257]
[1770612774059,11.8880994,2091.0,2090.4,4.54008373]
[1770612774261,11.8880994,2091.0,2090.5,4.54008373]
[1770612774461,11.8880994,2091.0,2090.6,4.54008373]
[1770612774760,11.8880994,2091.0,2090.4,4.27364257]
[1770612774960,11.8880994,2091.0,2090.5,4.5417299]
[1770612775162,11.8880994,2091.0,2090.6,4.5417299]
[1770612775362,11.8880994,2091.0,2090.5,4.27364257]
[1770612775662,11.8880994,2091.0,2090.6,4.54342996]
[1770612775863,11.8880994,2091.0,2090.5,4.27364257]
[1770612776062,11.8880994,2091.0,2090.6,4.54343435]
[1770612776259,11.8880994,2091.0,2090.5,4.27364257]
[1770612776460,21.04429707,2091.0,2090.6,4.54539004]
[1770612776661,11.8880994,2090.9,2090.5,4.27364257]
[1770612776954,9.15619767,2091.0,2090.6,4.54539133]
[1770612777160,26.8880994,2091.0,2090.7,4.54539133]
[1770612777360,36.04429707,2091.0,2090.5,4.27364257]
[1770612777560,36.04429707,2091.0,2090.6,4.54782891]
[1770612777761,36.04429707,2091.0,2090.7,4.54782891]
[1770612777962,36.04429707,2091.0,2090.5,4.27364257]
[1770612778264,36.04429707,2091.0,2090.6,8.82147148]
[1770612778561,11.8880994,2090.9,2090.7,4.54782891]
[1770612778863,11.8880994,2090.9,2090.6,4.27364257]
[1770612779064,11.8880994,2090.9,2090.7,4.5507093]
[1770612779258,8.2982635,2090.9,2090.8,4.55417121]
[1770612779465,8.2982635,2090.9,2090.8,4.1443603]
[1770612779866,8.2982635,2090.9,2090.6,4.27364257]
[1770612780061,9.15619767,2090.7,2090.6,4.27364257]
[1770612780262,11.2705362,2091.2,2090.6,7.43598648]
[1770612780463,11.2705362,2090.9,2090.6,4.27364257]
[1770612780968,8.97858365,2090.7,2090.6,4.27364257]
[1770612781265,8.80084744,2090.7,2090.6,4.27364257]
[1770612781567,8.80084744,2090.7,2090.6,5.70104355]
[1770612781763,8.62289531,2090.7,2090.6,8.81163764]
[1770612781967,0.00372022,2091.6,2090.6,8.81163764]
[1770612781968,11.2705362,2091.1,2090.6,8.81163764]
[1770612782267,11.2705362,2091.1,2090.9,4.29184119]
[1770612783367,11.2705362,2091.1,2090.9,2.29612678]
[1770612783568,11.2705362,2091.1,2090.9,2.19907127]
[1770612784068,11.2705362,2091.1,2090.9,1.19907127]
[1770612784666,15.0,2091.5,2090.4,3.38556046]
[1770612784667,11.2705362,2090.9,2090.4,3.38556046]
[1770612784968,11.2705362,2090.9,2090.2,4.63553419]
[1770612785168,11.2705362,2090.7,2090.2,4.63553419]
[1770612785368,11.09275968,2090.7,2090.2,4.63553419]
[1770612785568,11.2705362,2090.5,2090.0,8.47681015]
[1770612785969,15.0,2090.4,2090.0,8.47681015]
[1770612786171,4.38592894,2090.4,2090.0,8.47681015]
[1770612786464,11.2705362,2090.5,2090.0,8.47681015]
[1770612786669,3.38592894,2090.4,2090.0,8.47681015]
[1770612787069,11.2705362,2090.7,2090.0,8.47681015]
[1770612788171,3.38592894,2090.6,2090.5,11.24880828]
[1770612788372,11.2705362,2090.8,2090.5,11.24880828]
[1770612788567,3.38592894,2090.7,2090.5,11.24880828]
[1770612789975,14.65646514,2090.7,2090.5,2.86683683]
[1770612790175,13.87857551,2090.7,2090.5,2.86683683]
[1770612792669,13.87857551,2090.7,2089.3,11.29406831]
[1770612792670,11.2705362,2090.5,2089.3,11.29406831]
[1770612793073,11.2705362,2090.3,2089.3,11.29406831]
[1770612793572,2.60803931,2090.4,2088.8,0.23955]
[1770612793573,11.2705362,2090.1,2089.2,11.54992849]
[1770612793765,11.27465703,2090.1,2089.2,11.55484873]
[1770612794167,11.2705362,2089.9,2089.2,11.55484873]
[1770612796078,2.60803931,2089.8,2089.2,11.55484873]
[1770612796572,2.60803931,2089.8,2088.9,11.02676709]
[1770612796573,13.95805579,2089.8,2088.9,11.02676709]
[1770612797481,11.35001648,2089.8,2088.9,11.02676709]
[1770612797676,11.35001648,2089.8,2088.9,11.0306926]
[1770612799578,10.84683012,2089.6,2088.9,11.0306926]
[1770612799876,10.84683012,2089.6,2088.9,11.3008273]
[1770612801179,2.60803931,2089.5,2088.9,11.3008273]
[1770612802081,13.45486943,2089.5,2088.9,11.3008273]
[1770612802881,13.45486943,2089.5,2088.9,11.06043426]
[1770612803381,13.45486943,2089.5,2088.9,11.32379341]
[1770612805383,10.84683012,2089.5,2088.9,11.32379341]
[1770612807381,10.84683012,2089.5,2088.9,11.06043426]
[1770612807882,13.45486943,2089.4,2088.9,11.06043426]
[1770612808083,10.84683012,2089.4,2088.9,11.06043426]
[1770612808281,10.84683012,2089.4,2088.9,11.33099915]
[1770612812976,2.60803931,2089.3,2088.9,11.33099915]
[1770612813988,13.45486943,2089.3,2088.9,11.33099915]
[1770612814986,13.45486943,2089.3,2088.5,4.27346532]
[1770612815191,10.84683012,2089.1,2088.5,11.05650875]
[1770612815589,13.45486943,2089.0,2088.5,11.05650875]
[1770612815790,10.84683012,2089.0,2088.5,11.05650875]
[1770612816091,13.45486943,2089.0,2088.5,11.06033513]
[1770612816488,2.60803931,2088.9,2088.5,11.06033513]
[1770612816884,13.45486943,2088.9,2088.5,11.06033513]
[1770612817092,2.60803931,2088.8,2088.5,11.06033513]
[1770612817382,10.84683012,2089.1,2088.5,11.06033513]
[1770612817582,13.45486943,2089.0,2088.5,11.06033513]
[1770612817782,10.84683012,2089.0,2088.5,11.06033513]
[1770612817986,2.60803931,2088.9,2088.5,11.06033513]
[1770612818186,2.60803931,2088.9,2088.5,11.32750197]
[1770612820184,13.45486943,2088.9,2088.5,11.32750197]
[1770612823094,13.45486943,2088.9,2088.6,11.05650875]
[1770612823593,10.84683012,2089.7,2088.6,11.05650875]
[1770612823895,10.84683012,2089.7,2088.8,11.05650875]
[1770612825099,10.84683012,2089.7,2088.8,15.32997407]
[1770612825800,10.84683012,2089.7,2088.7,5.68842797]
[1770612825801,11.55002443,2089.5,2088.7,11.60498908]
[1770612828300,14.37823855,2089.7,2088.7,11.60498908]
[1770612828497,11.55002443,2089.7,2089.0,15.8784544]
[1770612828697,11.55002443,2089.7,2089.1,11.60498908]
[1770612830604,11.55002443,2089.7,2089.0,4.27346532]
[1770612832009,11.55002443,2089.7,2088.9,4.27346532]
[1770612835302,11.55002443,2089.7,2088.8,4.27346532]
[1770612836508,14.37823855,2089.7,2088.7,15.8784544]
[1770612837007,11.55002443,2089.7,2088.9,11.60498908]
[1770612837911,11.55002443,2089.7,2088.8,4.27346532]
[1770612838107,11.55002443,2089.7,2088.8,15.8784544]
[1770612839510,11.55002443,2089.7,2088.9,11.60498908]
[1770612841016,11.55002443,2089.7,2089.0,11.60498908]
[1770612841609,11.55002443,2089.7,2088.9,4.27346532]
[1770612841811,11.55002443,2089.3,2088.5,0.00382638]
[1770612843402,14.37823855,2089.3,2088.5,0.00382638]
[1770612846113,11.55002443,2089.3,2088.5,0.00382638]
[1770612846615,11.55002443,2088.9,2088.7,0.01]
[1770612846814,11.55002443,2088.9,2088.5,0.00382638]
[1770612847615,0.01,2088.6,2088.5,0.00382638]
[1770612847814,0.01505578,2088.6,2088.5,0.00382638]
[1770612848016,11.55508021,2088.6,2088.5,0.00382638]
[1770612851916,11.55508021,2088.6,2088.2,11.60498908]
[1770612852118,0.01,2088.5,2088.2,11.60498908]
[1770612852318,11.55508021,2088.6,2088.2,11.60498908]
[1770612852518,11.55508021,2088.6,2088.1,11.87968308]
[1770612852714,11.56508021,2088.6,2088.2,2.87335856]
[1770612852919,11.56508021,2088.6,2088.1,2.86335856]
[1770612853222,11.55508021,2088.6,2087.9,11.60498908]
[1770612853717,0.01,2088.2,2087.9,11.60498908]
[1770612853919,11.55002443,2088.4,2087.9,11.60498908]
[1770612854225,0.01,2088.2,2087.9,11.61082977]
[1770612854522,11.55002443,2088.2,2087.9,0.00584069]
[1770612855023,11.56002443,2088.2,2087.9,11.85136723]
[1770612855420,11.55002443,2088.2,2087.9,0.00584069]
[1770612855724,0.01,2088.1,2087.9,0.00584069]
[1770612856122,0.00505578,2088.6,2087.9,11.85136723]
[1770612856626,11.44551272,2088.6,2087.9,11.85136723]
[1770612857224,11.44551272,2088.6,2088.2,10.89879978]
[1770612857724,11.44551272,2088.6,2088.2,10.88879978]
[1770612857927,0.00505578,2088.6,2088.2,10.88879978]
[1770612858229,11.06235939,2088.8,2088.4,10.88879978]
[1770612858424,9.86562573,2088.8,2088.3,0.01]
[1770612858630,9.86562573,2088.8,2088.0,10.88879978]
[1770612859031,9.87132803,2088.8,2088.3,0.01]
[1770612859424,9.87132803,2088.8,2088.2,10.88879978]
[1770612859931,9.87132803,2088.8,2088.5,0.01]
[1770612860132,9.87132803,2088.8,2088.2,10.88879978]
[1770612860432,11.06235939,2088.6,2088.3,10.89879978]
[1770612860834,11.06235939,2088.6,2088.3,10.88879978]
[1770612861233,11.07235939,2088.6,2088.3,10.89879978]
[1770612861437,0.01,2088.6,2088.3,10.89879978]
[1770612861635,11.07235939,2088.6,2088.3,10.89879978]
[1770612861835,11.06235939,2088.7,2088.3,10.88879978]
[1770612863139,11.06235939,2088.7,2088.3,10.89879978]
[1770612863140,11.07235939,2088.7,2088.3,10.89879978]
[1770612863529,11.06235939,2088.7,2088.3,10.88879978]
[1770612863933,11.07235939,2088.7,2088.3,10.89879978]
[1770612864438,11.06235939,2088.7,2088.3,10.88879978]
[1770612864639,11.07235939,2088.7,2088.3,10.89879978]
[1770612865038,11.06235939,2088.7,2088.3,10.88879978]
[1770612865443,11.07235939,2088.7,2088.3,0.01]
[1770612865737,11.07235939,2088.7,2088.0,2.86335856]
[1770612865940,11.07235939,2088.7,2088.1,10.88879978]
[1770612865941,11.06235939,2088.7,2088.1,10.88879978]
[1770612866242,0.01,2088.5,2088.2,10.88879978]
[1770612866438,11.06806169,2088.8,2088.0,2.86335856]
[1770612866637,11.06806169,2088.8,2088.1,10.88879978]
[1770612866941,11.07235939,2088.6,2088.3,0.01]
[1770612867144,11.07235939,2088.6,2088.3,10.89879978]
[1770612867337,11.06235939,2088.6,2088.3,10.88879978]
[1770612868640,7.12460568,2089.7,2088.5,10.88879978]
[1770612868641,11.06235939,2089.3,2088.5,10.88879978]